bitfinex/quotes_ETHUSD_20250913
["timestamp","ask_amount","ask_price","bid_price","bid_amount"]
[1757766198889,8.4782232,4714.8,4714.7,1e-08]
[1757766201704,2.1211157,4714.5,4714.4,0.001]
[1757766201904,7.36914156,4714.5,4714.4,0.001]
[1757766202215,7.80071298,4714.5,4714.4,0.001]
[1757766202420,7.88558452,4714.5,4714.4,0.001]
[1757766206291,8.33028452,4714.5,4714.4,0.001]
[1757766207336,2.12120569,4714.3,4714.2,1e-08]
[1757766207555,10.06343387,4714.3,4714.2,1e-08]
[1757766207838,10.49500529,4714.3,4714.2,1e-08]
[1757766208074,10.57988529,4714.3,4714.2,1e-08]
[1757766208342,10.46091387,4714.3,4714.2,1e-08]
[1757766208821,7.42875318,4714.3,4714.2,1e-08]
[1757766209027,3.91975318,4714.3,4714.2,1.22860001]
[1757766209228,7.42975318,4714.3,4714.2,1.22860001]
[1757766210026,6.11265709,4714.3,4714.2,1.22860001]
[1757766214521,6.11265709,4714.3,4714.2,0.75670001]
[1757766215122,6.11265709,4714.3,4714.2,1e-08]
[1757766217642,6.11244821,4714.3,4714.2,1e-08]
[1757766218044,6.11244821,4714.3,4714.2,0.28620001]
[1757766218267,6.57205293,4714.3,4714.2,0.28620001]
[1757766221368,6.57205293,4714.3,4714.2,1.22860001]
[1757766221732,2.60244821,4714.3,4714.2,0.75670001]
[1757766221933,7.74044821,4714.3,4714.2,1.22860001]
[1757766224767,7.74044821,4714.3,4714.2,0.75670001]
[1757766224948,7.74044821,4714.3,4714.2,1.22860001]
[1757766229770,4.23044821,4714.3,4714.2,1.18900001]
[1757766229976,7.74044821,4714.3,4714.2,1.18900001]
[1757766230353,7.54216251,4714.3,4714.2,1.18900001]
[1757766231566,5.91416251,4714.3,4714.2,1.18900001]
[1757766238474,2.40416251,4714.3,4714.2,1.18900001]
[1757766238679,5.91316251,4714.3,4714.2,1.18900001]
[1757766240158,5.71508569,4714.3,4714.2,1.18900001]
[1757766240358,5.91313897,4714.3,4714.2,1.18900001]
[1757766242092,5.63220569,4714.3,4714.2,1.18900001]
[1757766242498,5.83022643,4714.3,4714.2,1e-08]
[1757766242798,6.60583023,4714.3,4714.2,1e-08]
[1757766243097,7.83534499,4714.3,4714.2,1e-08]
[1757766243301,8.32474499,4714.3,4714.2,1e-08]
[1757766243793,7.18009259,4714.3,4714.2,1e-08]
[1757766244771,6.69069259,4714.3,4714.2,1e-08]
[1757766245590,7.37812583,4714.3,4714.2,1e-08]
[1757766245769,7.37813593,4714.3,4714.2,1e-08]
[1757766246575,7.37814648,4714.3,4714.2,1e-08]
[1757766246800,8.6000305,4714.3,4714.2,1e-08]
[1757766247005,8.60004245,4714.3,4714.2,1e-08]
[1757766248176,8.11064245,4714.3,4714.2,1e-08]
[1757766249379,7.64974245,4714.3,4714.2,1e-08]
[1757766250414,7.64981587,4714.3,4714.2,1e-08]
[1757766256396,8.09901587,4714.3,4714.2,1e-08]
[1757766263694,7.64981587,4714.3,4714.2,1e-08]
[1757766268027,8.09901587,4714.3,4714.2,1e-08]
[1757766269592,7.64981587,4714.3,4714.2,1e-08]
[1757766271534,7.33511587,4714.3,4714.2,1e-08]
[1757766272935,7.13703397,4714.3,4714.2,1e-08]
[1757766273228,7.6391219,4714.3,4714.2,1e-08]
[1757766273732,8.0883219,4714.3,4714.2,1e-08]
[1757766275034,7.6391219,4714.3,4714.2,1e-08]
[1757766276037,7.3355219,4714.3,4714.2,0.31110001]
[1757766276204,6.11363788,4714.3,4714.2,0.31110001]
[1757766280543,6.11365415,4714.3,4714.2,1.21320001]
[1757766283338,3.70930001,4714.3,4714.2,1.21320001]
[1757766283544,5.8305057,4714.3,4714.2,1.21320001]
[1757766286046,2.3215057,4714.3,4714.2,1.21320001]
[1757766286216,5.8305057,4714.3,4714.2,1.21320001]
[1757766288320,5.8305057,4714.3,4714.2,1.23260001]
[1757766293535,0.20030001,4714.3,4714.2,1.23260001]
[1757766293737,3.511,4714.3,4714.2,1.35616001]
[1757766297894,5.63220569,4714.3,4714.2,1.35616001]
[1757766298076,5.63220569,4714.3,4714.2,1.23260001]
[1757766300807,5.63220569,4714.3,4714.2,1.23880001]
[1757766301796,3.511,4714.3,4714.2,1.23880001]
[1757766302097,5.63220569,4714.3,4714.2,1.23880001]
[1757766302660,2.12320569,4714.3,4714.2,1.23880001]
[1757766302860,5.63120569,4714.3,4714.2,1.23880001]
[1757766304603,5.63120569,4714.3,4714.2,0.77160001]
[1757766306109,3.51,4714.3,4714.2,0.77160001]
[1757766306313,5.63120569,4714.3,4714.2,0.77160001]
[1757766313117,5.63120569,4714.3,4714.2,0.31110001]
[1757766315841,3.51,4714.3,4714.2,0.31110001]
[1757766316130,3.51,4714.3,4714.2,0.80180001]
[1757766316841,5.63120569,4714.3,4714.2,0.80180001]
[1757766317430,3.51,4714.3,4714.2,0.80180001]
[1757766317633,5.63120569,4714.3,4714.2,0.80180001]
[1757766317832,3.51,4714.3,4714.2,0.80180001]
[1757766318928,3.51,4714.3,4714.2,0.31110001]
[1757766320144,5.63120569,4714.3,4714.2,0.31110001]
[1757766320511,5.63120569,4714.3,4714.2,1e-08]
[1757766321358,5.82948438,4714.3,4714.2,1e-08]
[1757766324117,3.70827869,4714.3,4714.2,1e-08]
[1757766324540,5.82948438,4714.3,4714.2,1e-08]
[1757766326642,6.11528438,4714.3,4714.2,1e-08]
[1757766328564,3.99407869,4714.3,4714.2,1e-08]
[1757766329759,3.70827869,4714.3,4714.2,1e-08]
[1757766330655,3.70827869,4714.3,4714.2,0.78040001]
[1757766331165,0.20027869,4714.3,4714.2,0.78040001]
[1757766331370,3.70827869,4714.3,4714.2,0.78040001]
[1757766333031,3.70827869,4714.3,4714.2,0.29190001]
[1757766333672,3.99407869,4714.3,4714.2,1e-08]
[1757766333857,6.11528438,4714.3,4714.2,1e-08]
[1757766334033,6.58218438,4714.3,4714.2,1e-08]
[1757766335448,6.11528438,4714.3,4714.2,1e-08]
[1757766343297,5.82948438,4714.3,4714.2,1e-08]
[1757766347402,5.82942289,4714.3,4714.2,1e-08]
[1757766347605,6.12182289,4714.3,4714.2,1e-08]
[1757766349399,6.12182289,4714.3,4714.2,1.19090001]
[1757766349400,0.002,4714.3,4714.2,1.19090001]
[1757766349603,0.002,4714.3,4714.2,1.31029001]
[1757766353914,0.2911,4714.3,4714.2,1e-08]
[1757766355087,0.7292,4714.3,4714.2,1e-08]
[1757766357989,0.2911,4714.3,4714.2,1e-08]
[1757766370413,0.002,4714.3,4714.2,0.29140001]
[1757766377934,0.002,4714.3,4714.2,0.75230001]
[1757766378539,0.002,4714.3,4714.2,1.21290001]
[1757766379139,0.002,4714.3,4714.2,0.75230001]
[1757766380656,0.002,4714.3,4714.2,0.29140001]
[1757766381627,0.002,4714.3,4714.2,1e-08]
[1757766382528,0.002,4714.3,4714.2,0.30880001]
[1757766383969,0.3008,4714.3,4714.2,1e-08]
[1757766384347,0.7681,4714.3,4714.2,1e-08]
[1757766384947,0.8529494,4714.3,4714.2,1e-08]
[1757766389677,0.3856494,4714.3,4714.2,1e-08]
[1757766389976,0.8529494,4714.3,4714.2,1e-08]
[1757766391399,0.3856494,4714.3,4714.2,1e-08]
[1757766393721,0.0868494,4714.3,4714.2,1e-08]
[1757766394219,0.3856494,4714.3,4714.2,1e-08]
[1757766395717,0.0868494,4714.3,4714.2,0.30880001]
[1757766396016,0.0868494,4714.3,4714.2,1.23030001]
[1757766398929,0.0868494,4714.3,4714.2,0.76970001]
[1757766400612,0.002,4714.3,4714.2,0.76970001]
[1757766402532,0.002,4714.3,4714.2,1.23030001]
[1757766402828,0.002,4714.3,4714.2,1.25151251]
[1757766403231,0.002,4714.3,4714.2,1.37696376]
[1757766403407,0.002,4714.3,4714.2,1.35575126]
[1757766415440,0.002,4714.3,4714.2,0.89515126]
[1757766416241,0.002,4714.3,4714.2,1.33415126]
[1757766419548,0.002,4714.3,4714.2,0.89515126]
[1757766420716,0.002,4714.3,4714.2,0.43425126]
[1757766422944,0.002,4714.3,4714.2,0.92295126]
[1757766433778,0.002,4714.3,4714.2,0.43425126]
[1757766434145,0.002,4714.3,4714.2,0.12545126]
[1757766435847,0.288,4714.3,4714.2,1e-08]
[1757766436047,0.002,4714.3,4714.2,1e-08]
[1757766436447,0.002,4714.3,4714.2,0.30150001]
[1757766439880,0.002,4714.3,4714.2,1.20390001]
[1757766446682,0.002,4714.3,4714.2,0.75450001]
[1757766446992,0.002,4714.3,4714.2,0.42219001]
[1757766447309,0.288,4714.3,4714.2,0.12069001]
[1757766448181,0.288,4714.3,4714.2,1e-08]
[1757766456003,0.002,4714.3,4714.2,1e-08]
[1757766459905,0.002,4714.3,4714.2,0.30150001]
[1757766462801,0.002,4714.3,4714.2,1e-08]
[1757766463417,0.002,4714.3,4714.2,0.30150001]
[1757766463618,0.002,4714.3,4714.2,0.42219001]
[1757766467317,0.002,4714.3,4714.2,0.12069001]
[1757766468514,0.002,4714.3,4714.2,0.41209001]
[1757766473223,0.002,4714.3,4714.2,0.29140001]
[1757766474542,0.29340001,4714.3,4714.2,1e-08]
[1757766476238,0.002,4714.3,4714.2,1e-08]
[1757766476446,0.002,4714.3,4714.2,0.08483897]
[1757766476607,0.002,4714.3,4714.2,0.37623897]
[1757766482852,0.002,4714.3,4714.2,0.82743897]
[1757766487423,0.002,4714.3,4714.2,0.37623897]
[1757766489029,0.002,4714.3,4714.2,0.08483897]
[1757766492462,0.2965,4714.3,4714.2,0.08483897]
[1757766497770,0.002,4714.3,4714.2,0.08483897]
[1757766499369,0.002,4714.3,4714.2,0.89925147]
[1757766499554,0.002,4714.8,4714.2,1.77907662]
[1757766499755,0.002,4714.8,4714.4,0.1056]
[1757766499958,0.002,4714.8,4714.5,1.627]
[1757766500159,0.002,4714.8,4714.7,0.3105]
[1757766500356,0.002,4714.8,4714.7,7.71298]
[1757766500760,0.002,4714.8,4714.7,8.63468]
[1757766501069,0.002,4714.8,4714.7,8.74228]
[1757766521818,0.002,4714.8,4714.7,8.30328]
[1757766522113,0.002,4714.8,4714.7,8.74228]
[1757766526780,0.002,4714.8,4714.7,8.30328]
[1757766527583,0.002,4714.8,4714.7,8.40888]
[1757766529225,0.75,4714.8,4714.7,7.61468]
[1757766530519,0.3163,4714.8,4714.7,7.61468]
[1757766531023,0.002,4714.8,4714.7,7.61468]
[1757766531404,0.002,4714.8,4714.7,7.90168]
[1757766531598,0.002,4714.8,4714.7,8.39148]
[1757766532113,0.002,4714.8,4714.7,7.90168]
[1757766533216,0.002,4714.8,4714.7,7.61468]
[1757766533911,0.3163,4714.8,4714.7,7.61468]
[1757766534298,0.75,4714.8,4714.7,7.61468]
[1757766534816,0.75,4714.8,4714.7,7.50708]
[1757766535122,0.3163,4714.8,4714.7,7.50708]
[1757766536720,0.75,4714.8,4714.7,7.50708]
[1757766537123,0.3163,4714.8,4714.7,7.50708]
[1757766539634,0.3163,4714.8,4714.7,9.4052089]
[1757766540318,0.002,4714.8,4714.7,9.4052089]
[1757766541244,0.3163,4714.8,4714.7,9.4052089]
[1757766541448,0.3163,4714.8,4714.7,5.9002089]
[1757766541749,0.3163,4714.8,4714.7,9.4052089]
[1757766542355,0.002,4714.8,4714.7,9.4052089]
[1757766543251,0.002,4714.8,4714.7,5.9002089]
[1757766543551,0.3163,4714.8,4714.7,9.4042089]
[1757766544061,0.002,4714.8,4714.7,9.4042089]
[1757766545153,0.002,4714.8,4714.7,9.6912089]
[1757766545319,0.002,4714.8,4714.7,10.6418089]
[1757766545731,0.002,4714.8,4714.7,8.74368]
[1757766546259,0.002,4714.8,4714.7,10.64962615]
[1757766547360,0.002,4714.8,4714.7,8.74368]
[1757766547527,0.002,4714.8,4714.7,8.28288]
[1757766548034,0.002,4714.8,4714.7,10.18880123]
[1757766549238,0.002,4714.8,4714.7,10.64960123]
[1757766549577,0.002,4714.8,4714.7,8.74368]
[1757766550158,0.002,4714.8,4714.7,10.18880594]
[1757766554871,0.3163,4714.8,4714.7,9.41200594]
[1757766557339,0.002,4714.8,4714.7,9.41200594]
[1757766561772,0.002,4714.8,4714.7,9.70620594]
[1757766562067,0.002,4714.8,4714.7,8.26798]
[1757766562277,0.002,4714.8,4714.7,10.17428108]
[1757766564470,0.002,4714.8,4714.7,8.26798]
[1757766564774,0.002,4714.8,4714.7,10.17427715]
[1757766564940,0.002,4714.8,4714.7,8.26798]
[1757766565353,0.002,4714.8,4714.7,9.89498]
[1757766566071,0.002,4714.8,4714.7,11.80127878]
[1757766566375,0.002,4714.8,4714.7,9.89498]
[1757766566576,0.002,4714.8,4714.7,11.8012982]
[1757766567502,0.002,4714.8,4714.7,9.42728]
[1757766568781,0.002,4714.8,4714.7,11.33363119]
[1757766568984,0.002,4714.8,4714.7,11.03943119]
[1757766570587,0.002,4714.8,4714.7,9.13308]
[1757766570979,0.002,4714.8,4714.7,9.42728]
[1757766571184,0.002,4714.8,4714.7,9.89498]
[1757766571962,0.002,4714.8,4714.7,10.33828]
[1757766575792,0.002,4714.8,4714.7,9.89498]
[1757766576183,0.002,4715.1,4714.8,33.0]
[1757766576360,0.002,4715.1,4715.0,3.1056]
[1757766576563,0.002,4715.1,4715.0,33.3998]
[1757766576761,0.002,4715.1,4715.0,34.3108]
[1757766577162,0.002,4715.1,4715.0,34.3956046]
[1757766583022,0.002,4715.1,4715.0,33.9523046]
[1757766583220,0.002,4715.1,4715.0,34.40340827]
[1757766585925,0.002,4715.1,4715.0,36.3095408]
[1757766586310,0.002,4715.1,4715.0,34.40340827]
[1757766592231,0.002,4715.1,4715.0,33.93570827]
[1757766596832,0.002,4715.1,4715.0,33.64150827]
[1757766597052,0.2974,4715.1,4715.0,33.64150827]
[1757766597594,0.002,4715.1,4715.0,33.64150827]
[1757766601260,0.002,4715.1,4715.0,37.14550827]
[1757766602278,0.002,4715.1,4715.0,39.0516408]
[1757766606867,0.002,4715.1,4715.0,39.3677408]
[1757766610383,0.002,4715.1,4715.0,39.8371408]
[1757766612171,0.002,4715.1,4715.0,40.2989408]
[1757766612374,0.002,4715.1,4715.0,38.39280827]
[1757766618665,0.002,4715.6,4715.2,3.0]
[1757766618889,0.002,4715.6,4715.4,4.90511711]
[1757766619091,0.002,4715.6,4715.5,8.83202376]
[1757766619292,0.002,4715.6,4715.5,8.81081711]
[1757766619700,0.002,4715.6,4715.5,9.28671711]
[1757766619892,0.002,4715.6,4715.5,10.30490134]
[1757766620195,0.002,4715.6,4715.5,10.38969462]
[1757766620393,0.002,4715.6,4715.5,8.48457751]
[1757766620588,0.002,4715.6,4715.5,8.93887751]
[1757766621163,0.002,4715.7,4715.5,8.93887751]
[1757766621164,0.002,4715.7,4715.6,33.0]
[1757766621370,0.002,4715.7,4715.6,39.49908615]
[1757766621570,0.002,4715.7,4715.6,37.89149296]
[1757766622811,0.002,4715.7,4715.6,36.66519296]
[1757766623878,0.002,4715.7,4715.6,36.96129296]
[1757766624486,0.002,4715.7,4715.6,37.43719296]
[1757766624781,0.3356,4716.1,4715.6,37.43719296]
[1757766624968,0.3356,4716.1,4715.8,3.0]
[1757766625168,0.3356,4716.1,4716.0,3.1056]
[1757766625601,0.6465,4716.1,4716.0,3.1056]
[1757766627472,0.3109,4716.1,4716.0,3.1056]
[1757766629806,0.3109,4716.1,4716.0,3.5694]
[1757766629988,0.3109,4716.1,4716.0,4.72226149]
[1757766630979,0.002,4716.2,4716.0,5.01096149]
[1757766631192,0.002,4716.2,4716.1,6.503]
[1757766632422,0.7767,4716.2,4716.1,6.503]
[1757766632711,0.3129,4716.2,4716.1,6.9668]
[1757766632914,0.3129,4716.2,4716.1,8.02465764]
[1757766637626,0.002,4716.2,4716.1,8.80225764]
[1757766639226,0.002,4716.2,4716.1,9.25505764]
[1757766640424,0.002,4716.7,4716.2,33.0]
[1757766640626,0.002,4716.7,4716.4,3.0]
[1757766640832,0.002,4716.7,4716.6,3.3943]
[1757766641244,0.4629,4717.8,4716.6,3.3943]
[1757766641245,0.4638,4717.7,4716.8,3.0]
[1757766641408,0.4629,4717.7,4717.0,3.0]
[1757766641595,0.4638,4717.6,4717.2,3.0]
[1757766641802,0.792,4718.1,4717.4,3.0]
[1757766642006,0.3109,4717.5,4716.6,3.4889]
[1757766642207,0.4638,4717.4,4716.9,0.4638]
[1757766642497,0.9267,4717.4,4717.1,3.0]
[1757766642700,0.4629,4717.4,4717.3,3.0]
[1757766643032,0.7738,4717.4,4717.3,3.0]
[1757766643200,0.7738,4717.4,4717.3,3.6357919]
[1757766643401,1.2376,4717.4,4717.3,3.6357919]
[1757766644324,0.7747,4717.4,4717.3,3.6357919]
[1757766646040,0.7767,4717.4,4717.3,3.6357919]
[1757766646340,0.3129,4717.4,4717.3,3.6357919]
[1757766647611,0.7773,4717.4,4717.3,3.6357919]
[1757766648744,0.3129,4717.4,4717.3,3.6357919]
[1757766649046,0.002,4717.4,4717.3,3.6357919]
[1757766652042,0.002,4717.4,4717.3,4.4157919]
[1757766652342,0.002,4717.4,4717.3,4.8449919]
[1757766652844,0.002,4717.4,4717.3,4.4157919]
[1757766653227,0.002,4717.4,4717.3,5.27230916]
[1757766653733,0.002,4717.4,4717.3,5.70150916]
[1757766654838,0.002,4717.4,4717.3,5.27230916]
[1757766655037,0.002,4717.4,4717.3,5.70150916]
[1757766657167,0.002,4717.4,4717.3,5.27230916]
[1757766657356,0.002,4717.4,4717.3,5.70150916]
[1757766660166,0.002,4717.4,4717.3,5.27230916]
[1757766660332,0.002,4717.4,4717.3,5.70150916]
[1757766662485,0.002,4717.4,4717.3,35.70150916]
[1757766666754,0.002,4717.4,4717.3,37.60372035]
[1757766667881,0.002,4718.4,4717.5,3.0]
[1757766668092,0.002,4718.4,4718.3,0.2999]
[1757766668243,0.002,4718.4,4718.3,6.9135]
[1757766668557,0.002,4718.4,4718.3,7.3661]
[1757766669207,0.002,4718.4,4718.3,7.7953]
[1757766669384,0.002,4718.4,4718.3,38.62090367]
[1757766669589,0.002,4718.4,4718.3,40.52311486]
[1757766670678,0.4526,4719.4,4718.4,3.0]
[1757766670900,0.4526,4719.4,4718.6,3.0]
[1757766671216,0.4526,4719.4,4718.8,3.0]
[1757766671379,0.4526,4719.4,4719.0,3.0]
[1757766671579,0.4934,4719.6,4718.9,0.74699112]
[1757766671580,0.3031,4719.1,4718.9,0.74699112]
[1757766671780,0.3031,4719.1,4719.0,3.508]
[1757766672300,0.3031,4719.1,4719.0,4.0014]
[1757766677301,0.752,4719.1,4719.0,4.0014]
[1757766677507,0.752,4719.1,4719.0,4.78423911]
[1757766678018,0.752,4719.1,4719.0,4.78223911]
[1757766679518,0.3031,4719.1,4719.0,4.78223911]
[1757766679899,0.3031,4719.1,4719.0,1.27623911]
[1757766680100,0.3031,4719.1,4719.0,4.78223911]
[1757766681429,0.5545,4719.5,4719.0,7.78223911]
[1757766681601,0.1056,4719.5,4719.1,3.79678391]
[1757766681921,0.4489,4719.4,4719.3,3.0]
[1757766682109,0.753,4719.4,4719.3,3.0]
[1757766682791,0.753,4719.4,4719.3,3.63553869]
[1757766683005,0.753,4719.4,4719.3,4.42937095]
[1757766684136,0.3041,4719.4,4719.3,4.42937095]
[1757766687523,0.1056,4719.5,4719.3,4.42937095]
[1757766687840,0.8976,4719.5,4719.4,6.505]
[1757766688040,0.1056,4719.5,4719.4,6.505]
[1757766688231,0.002,4719.6,4719.5,3.0]
[1757766688429,0.002,4719.6,4719.5,3.97268868]
[1757766688632,0.002,4719.6,4719.5,4.28188868]
[1757766689014,0.002,4719.6,4719.5,4.38748868]
[1757766694661,0.002,4719.6,4719.5,4.3663]
[1757766694885,0.002,4719.6,4719.5,5.41058371]
[1757766696829,0.002,4719.6,4719.5,4.45908371]
[1757766699889,0.002,4719.6,4719.5,4.14988371]
[1757766700392,0.755,4719.6,4719.5,7.65388371]
[1757766701454,0.755,4719.6,4719.5,4.14988371]
[1757766701657,0.755,4719.6,4719.5,7.65388371]
[1757766703387,0.755,4719.6,4719.5,6.6096]
[1757766703562,2.0062,4719.6,4719.5,6.6096]
[1757766703759,0.794,4719.6,4719.5,6.9188]
[1757766704092,0.002,4720.1,4719.6,33.0]
[1757766704295,0.002,4720.1,4719.8,4.9002139]
[1757766704501,0.002,4720.1,4720.0,3.0]
[1757766704702,0.002,4720.1,4720.0,3.3092]
[1757766705082,0.002,4720.1,4720.0,4.2607]
[1757766705490,0.002,4720.1,4720.0,4.3663]
[1757766705997,0.002,4720.1,4720.0,4.38748644]
[1757766706200,0.002,4720.1,4720.0,5.40738895]
[1757766706368,0.002,4720.1,4720.0,5.38620251]
[1757766707974,0.3107,4720.1,4720.0,4.63550251]
[1757766708172,0.7614,4720.1,4720.0,4.63550251]
[1757766710189,0.002,4720.1,4720.0,4.94620251]
[1757766710407,0.002,4720.1,4720.0,8.44490251]
[1757766710610,0.002,4720.1,4720.0,8.88620251]
[1757766711205,0.002,4720.1,4720.0,8.44490251]
[1757766711593,0.002,4720.1,4720.0,7.94620251]
[1757766712593,0.002,4720.1,4720.0,7.63550251]
[1757766713111,0.002,4720.1,4720.0,8.88720251]
[1757766713311,0.002,4720.1,4720.0,8.99280251]
[1757766714126,0.002,4720.1,4720.0,8.55150251]
[1757766714725,0.002,4720.1,4720.0,8.44590251]
[1757766715015,0.002,4720.1,4720.0,7.63650251]
[1757766715314,0.2923,4720.1,4720.0,7.63850251]
[1757766715501,0.2923,4720.1,4720.0,4.12550251]
[1757766715700,0.2923,4720.1,4720.0,7.63850251]
[1757766716115,0.2923,4720.1,4720.0,3.0]
[1757766716308,1.2008,4720.1,4720.0,6.513]
[1757766716805,0.7225,4720.1,4720.0,6.513]
[1757766719228,0.7225,4720.1,4720.0,3.0]
[1757766719433,0.7225,4720.1,4720.0,6.513]
[1757766719635,1.2008,4720.1,4720.0,6.513]
[1757766720132,0.2923,4720.1,4720.0,6.513]
[1757766720331,0.002,4720.1,4720.0,7.3224]
[1757766721030,0.002,4720.1,4720.0,6.8237]
[1757766722341,0.002,4720.1,4720.0,8.73019139]
[1757766722853,0.002,4720.1,4720.0,8.28889139]
[1757766723222,0.002,4720.1,4720.0,8.73019139]
[1757766725850,0.002,4720.1,4720.0,8.28889139]
[1757766727153,0.002,4720.1,4720.0,8.73019139]
[1757766728343,0.002,4720.1,4720.0,8.83579139]
[1757766728655,0.002,4720.6,4720.1,3.0]
[1757766728962,0.002,4720.6,4720.3,3.0]
[1757766729165,0.002,4720.6,4720.5,0.3107]
[1757766729485,0.002,4720.6,4720.5,3.3107]
[1757766733281,0.3878,4721.1,4720.5,3.3107]
[1757766733578,0.1056,4721.1,4720.6,3.513]
[1757766733755,0.1056,4721.1,4720.6,5.04948791]
[1757766733957,0.1056,4721.1,4720.6,4.55078791]
[1757766735449,0.5502,4721.1,4720.6,4.55078791]
[1757766737279,0.4502,4721.1,4720.6,4.55078791]
[1757766737680,0.4522,4721.1,4720.6,4.55078791]
[1757766738186,0.0076,4721.1,4721.0,0.2887]
[1757766738353,0.002,4721.1,4721.0,6.8017]
[1757766738546,0.002,4721.1,4721.0,7.7202]
[1757766738760,0.002,4721.1,4721.0,7.82450139]
[1757766739075,0.002,4721.1,4721.0,7.35630139]
[1757766739282,0.002,4721.1,4721.0,8.24711241]
[1757766740183,0.002,4721.1,4721.0,7.79681241]
[1757766741550,1.1962,4721.6,4721.1,3.0]
[1757766741789,0.1056,4721.4,4721.2,3.512]
[1757766741964,0.2981,4721.3,4721.2,6.512]
[1757766747097,0.1056,4721.4,4721.3,3.0]
[1757766747405,0.1056,4721.4,4721.2,3.512]
[1757766747585,0.1056,4721.4,4721.3,3.0]
[1757766747986,0.4037,4721.4,4721.3,3.0]
[1757766749321,0.4037,4721.4,4721.0,0.10705259]
[1757766749523,0.4037,4721.4,4721.2,3.0]
[1757766749722,0.1056,4721.4,4721.3,6.511]
[1757766749922,0.8976,4721.4,4721.3,6.511]
[1757766750621,1.1957,4721.4,4721.3,6.511]
[1757766755022,1.1957,4721.4,4721.3,6.51]
[1757766755528,1.1977,4721.4,4721.3,6.51]
[1757766757339,1.1977,4721.4,4721.3,3.0]
[1757766757518,1.1977,4721.4,4721.3,6.509]
[1757766757829,1.6423,4721.4,4721.3,6.509]
[1757766758524,1.1977,4721.4,4721.3,3.0]
[1757766758729,1.6423,4721.4,4721.3,6.509]
[1757766759027,2.121,4721.4,4721.3,6.509]
[1757766759936,1.6423,4721.4,4721.3,6.509]
[1757766760117,1.1977,4721.4,4721.3,6.509]
[1757766760833,1.6423,4721.4,4721.3,6.509]
[1757766761399,0.8996,4721.4,4721.3,6.509]
[1757766761815,1.1977,4721.4,4721.3,6.509]
[1757766764313,2.121,4721.4,4721.3,3.0]
[1757766764615,2.121,4721.4,4721.3,6.509]
[1757766764616,2.24077,4721.4,4721.3,6.509]
[1757766766032,2.24077,4721.4,4721.3,3.0]
[1757766766638,2.121,4721.4,4721.3,3.0]
[1757766768923,1.6423,4721.4,4721.3,3.0]
[1757766769549,1.4923,4721.4,4721.3,3.0]
[1757766771357,1.0477,4721.4,4721.3,3.0]
[1757766771959,0.002,4721.4,4721.3,3.0]
[1757766772156,1.5628,4721.4,4721.3,3.0]
[1757766773263,1.4628,4721.4,4721.3,3.0]
[1757766773639,1.002,4721.4,4721.3,3.0]
[1757766774346,1.002,4721.4,4721.3,3.001]
[1757766776269,1.1,4721.4,4721.3,3.001]
[1757766776475,1.5608,4721.4,4721.3,3.001]
[1757766782761,1.1,4721.4,4721.3,3.001]
[1757766783476,1.5608,4721.4,4721.3,3.001]
[1757766785681,2.2156,4721.4,4721.3,0.001]
[1757766786284,1.7624,4721.4,4721.3,0.001]
[1757766786677,1.3016,4721.4,4721.3,0.001]
[1757766787294,0.792,4721.4,4721.3,0.001]
[1757766789426,0.002,4721.6,4721.3,1.2431]
[1757766789631,0.002,4721.6,4721.3,0.2988]
[1757766789817,0.002,4721.6,4721.4,0.9443]
[1757766790181,0.002,4721.6,4721.5,0.2978]
[1757766793903,0.002,4721.6,4721.5,1.2421]
[1757766796012,0.794,4721.6,4721.5,1.2421]
[1757766799224,2.11992612,4721.6,4721.5,1.2421]
[1757766799442,3.01557578,4721.5,4721.3,0.001]
[1757766799609,2.11801584,4721.4,4721.3,0.001]
[1757766799944,1.1016,4721.4,4721.3,0.001]
[1757766800141,0.792,4721.4,4721.3,0.001]
[1757766802711,0.792,4721.4,4721.3,0.3065]
[1757766802917,0.792,4721.4,4721.3,1.2174]
[1757766803131,0.792,4721.4,4721.3,1.33914]
[1757766803510,0.792,4721.4,4721.3,1.85270988]
[1757766816920,0.002,4721.6,4721.3,1.87389048]
[1757766817157,0.002,4721.6,4721.4,0.9109]
[1757766817347,0.002,4721.6,4721.5,6.508]
[1757766817548,0.002,4721.6,4721.5,7.7244]
[1757766817747,0.002,4721.6,4721.5,8.5075]
[1757766818248,0.002,4721.6,4721.5,8.6131]
[1757766838191,0.002,4721.6,4721.5,8.1691]
[1757766838497,0.002,4721.6,4721.5,8.6258]
[1757766840403,0.002,4721.6,4721.5,7.7045]
[1757766843604,0.3086,4721.6,4721.5,3.8887]
[1757766843901,0.3086,4721.6,4721.5,6.6126]
[1757766845679,1.1006,4721.6,4721.5,6.6116]
[1757766847118,1.1006,4721.6,4721.5,3.1056]
[1757766847317,1.1006,4721.6,4721.5,6.6116]
[1757766847504,1.1006,4721.6,4721.5,3.1056]
[1757766847818,1.5501,4721.6,4721.5,6.6116]
[1757766847978,1.1006,4721.6,4721.5,6.6116]
[1757766849823,1.1006,4721.6,4721.5,3.1056]
[1757766850019,1.1006,4721.6,4721.5,6.6116]
[1757766851294,1.5816,4721.6,4721.5,0.1056]
[1757766851492,2.19982,4721.6,4721.4,3.506]
[1757766851691,1.1006,4721.6,4721.4,3.506]
[1757766857326,0.002,4721.6,4721.5,3.7938]
[1757766857529,0.002,4721.6,4721.5,4.2444]